[Event "Early-Titled-Tuesday-Blitz-October-17-2023"]
[Site "Chess.com"]
[Date "2023.10.17"]
[Round "4"]
[White "Firouzja2003"]
[Black "krzyzan94"]
[Result "1-0"]
[WhiteElo "3080"]
[BlackElo "2797"]
[TimeControl "180+1"]
[EndTime "8:42:32 PDT"]
[Termination "Firouzja2003 won on time"]

1. d4 {[%clk 0:03:00.9]} 1... Nf6 {[%clk 0:02:59.9]} 2. c4 {[%clk 0:03:00.9]}
2... e6 {[%clk 0:03:00.4]} 3. a3 {[%clk 0:03:01.3]} 3... c5 {[%clk 0:02:56.2]}
4. d5 {[%clk 0:03:01.4]} 4... exd5 {[%clk 0:02:54.4]} 5. cxd5 {[%clk 0:03:02.3]}
5... d6 {[%clk 0:02:54.3]} 6. e4 {[%clk 0:03:01.9]} 6... a6 {[%clk 0:02:51.8]}
7. Bd3 {[%clk 0:02:48.6]} 7... g6 {[%clk 0:02:50.9]} 8. a4 {[%clk 0:02:41.7]}
8... Bg7 {[%clk 0:02:50.7]} 9. Nf3 {[%clk 0:02:35.8]} 9... O-O {[%clk
0:02:47.3]} 10. O-O {[%clk 0:02:36.1]} 10... Bg4 {[%clk 0:02:46.9]} 11. Nbd2
{[%clk 0:02:36.1]} 11... Nbd7 {[%clk 0:02:44.5]} 12. h3 {[%clk 0:02:36]} 12...
Bxf3 {[%clk 0:02:43.8]} 13. Nxf3 {[%clk 0:02:36.9]} 13... Re8 {[%clk 0:02:37.9]}
14. Re1 {[%clk 0:02:36.2]} 14... c4 {[%clk 0:02:38.4]} 15. Bxc4 {[%clk
0:02:23.5]} 15... Nxe4 {[%clk 0:02:38]} 16. Ra3 {[%clk 0:02:21.3]} 16... f5
{[%clk 0:02:09.9]} 17. Bf1 {[%clk 0:02:06.3]} 17... Qb6 {[%clk 0:02:03.2]} 18.
Be3 {[%clk 0:02:02.7]} 18... Qxb2 {[%clk 0:01:55.5]} 19. Rb3 {[%clk 0:02:00.1]}
19... Qa2 {[%clk 0:01:41]} 20. Rxb7 {[%clk 0:01:57.6]} 20... Ndc5 {[%clk
0:01:21.4]} 21. Rxg7+ {[%clk 0:01:57.6]} 21... Kxg7 {[%clk 0:01:21.7]} 22. Qd4+
{[%clk 0:01:49.7]} 22... Kg8 {[%clk 0:01:17.6]} 23. Bh6 {[%clk 0:01:20.2]} 23...
Re7 {[%clk 0:01:14]} 24. Ng5 {[%clk 0:00:42.6]} 24... Qxa4 {[%clk 0:00:47.3]}
25. Qxa4 {[%clk 0:00:36.6]} 25... Nxa4 {[%clk 0:00:47.3]} 26. f3 {[%clk
0:00:37.4]} 26... Nxg5 {[%clk 0:00:34.7]} 27. Rxe7 {[%clk 0:00:38.3]} 27... Nf7
{[%clk 0:00:35.4]} 28. Bd2 {[%clk 0:00:32]} 28... a5 {[%clk 0:00:32.5]} 29. Bb5
{[%clk 0:00:31.8]} 29... Nc5 {[%clk 0:00:32.6]} 30. Bc6 {[%clk 0:00:31.1]} 30...
Rb8 {[%clk 0:00:18.5]} 31. Bxa5 {[%clk 0:00:29.5]} 31... Nd3 {[%clk 0:00:15]}
32. Bc3 {[%clk 0:00:23.5]} 32... f4 {[%clk 0:00:13.5]} 33. Bf6 {[%clk
0:00:17.7]} 33... Nfe5 {[%clk 0:00:11.5]} 34. Bxe5 {[%clk 0:00:11.9]} 34... Nxe5
{[%clk 0:00:10.7]} 35. Re6 {[%clk 0:00:07.5]} 35... Nd3 {[%clk 0:00:10]} 36. Kf1
{[%clk 0:00:05.9]} 36... Rd8 {[%clk 0:00:06.3]} 37. Ke2 {[%clk 0:00:04.6]} 37...
Ne5 {[%clk 0:00:06.7]} 38. Rf6 {[%clk 0:00:04.6]} 38... g5 {[%clk 0:00:05.5]}
39. Rf5 {[%clk 0:00:05.1]} 39... h6 {[%clk 0:00:05.5]} 40. h4 {[%clk 0:00:05.7]}
40... Nf7 {[%clk 0:00:02.4]} 41. hxg5 {[%clk 0:00:05.2]} 41... hxg5 {[%clk
0:00:03.3]} 42. Rf6 {[%clk 0:00:04.4]} 42... Kg7 {[%clk 0:00:03.9]} 43. Re6
{[%clk 0:00:05]} 43... Ne5 {[%clk 0:00:04.2]} 44. Kd2 {[%clk 0:00:04.7]} 44...
Kf7 {[%clk 0:00:03.6]} 45. Bb5 {[%clk 0:00:05.2]} 45... Rb8 {[%clk 0:00:01.6]}
46. Be2 {[%clk 0:00:05.1]} 46... Rd8 {[%clk 0:00:02.2]} 47. Kc3 {[%clk
0:00:05.2]} 47... Ng6 {[%clk 0:00:02.4]} 48. Kd4 {[%clk 0:00:04.9]} 48... Ne7
{[%clk 0:00:03]} 49. Bd3 {[%clk 0:00:04.8]} 49... Ra8 {[%clk 0:00:02.3]} 50.
Rxd6 {[%clk 0:00:05]} 50... Ra4+ {[%clk 0:00:02.8]} 51. Ke5 {[%clk 0:00:05.4]}
51... Ra2 {[%clk 0:00:02.6]} 52. Rh6 {[%clk 0:00:05.2]} 52... Rxg2 {[%clk
0:00:02.7]} 53. Rh7+ {[%clk 0:00:04.3]} 53... Ke8 {[%clk 0:00:02.8]} 54. d6
{[%clk 0:00:04.8]} 54... Nc6+ {[%clk 0:00:02.9]} 55. Kd5 {[%clk 0:00:05.4]}
55... Nb4+ {[%clk 0:00:03.2]} 56. Ke6 {[%clk 0:00:06]} 56... Kf8 {[%clk
0:00:02]} 57. d7 {[%clk 0:00:05.9]} 57... Nc6 {[%clk 0:00:01.9]} 58. Rh8+ {[%clk
0:00:06.6]} 58... Kg7 {[%clk 0:00:02.3]} 59. Rc8 {[%clk 0:00:07.5]} 59... Rd2
{[%clk 0:00:01.4]} 60. Rxc6 {[%clk 0:00:05.9]} 60... Rxd3 {[%clk 0:00:02]} 61.
Ke7 {[%clk 0:00:06.6]} 61... Re3+ {[%clk 0:00:02.5]} 62. Re6 {[%clk 0:00:07.1]}
62... Rxe6+ {[%clk 0:00:02.4]} 63. Kxe6 {[%clk 0:00:07.4]} 63... g4 {[%clk
0:00:03.3]} 64. d8=Q {[%clk 0:00:07.8]} 64... gxf3 {[%clk 0:00:03.4]} 65. Qg5+
{[%clk 0:00:08.4]} 65... Kh7 {[%clk 0:00:02.6]} 66. Kf7 {[%clk 0:00:08.4]} 1-0

[Event "Early-Titled-Tuesday-Blitz-October-17-2023"]
[Site "Chess.com"]
[Date "2023.10.17"]
[Round "4"]
[White "abc_xyz4744"]
[Black "Air-Conditioner07"]
[Result "1/2-1/2"]
[WhiteElo "2359"]
[BlackElo "2191"]
[TimeControl "180+1"]
[EndTime "8:42:39 PDT"]
[Termination "Game drawn by repetition"]

1. e4 {[%clk 0:01:27.5]} 1... e5 {[%clk 0:02:58.1]} 2. Nf3 {[%clk 0:01:26.1]}
2... Nc6 {[%clk 0:02:58]} 3. Bc4 {[%clk 0:01:21]} 3... Bc5 {[%clk 0:02:56.7]} 4.
c3 {[%clk 0:01:19.1]} 4... d6 {[%clk 0:02:55]} 5. d3 {[%clk 0:01:16]} 5... Nf6
{[%clk 0:02:50.8]} 6. Nbd2 {[%clk 0:01:14.5]} 6... a5 {[%clk 0:02:47.3]} 7. O-O
{[%clk 0:01:10]} 7... O-O {[%clk 0:02:47]} 8. h3 {[%clk 0:01:09.2]} 8... Ba7
{[%clk 0:02:43.3]} 9. Re1 {[%clk 0:01:09.6]} 9... Be6 {[%clk 0:02:41.2]} 10. Bb5
{[%clk 0:01:07.2]} 10... Ne7 {[%clk 0:02:37.3]} 11. Nf1 {[%clk 0:01:07.1]} 11...
Ng6 {[%clk 0:02:37]} 12. Be3 {[%clk 0:01:06.3]} 12... c6 {[%clk 0:02:33.5]} 13.
Ba4 {[%clk 0:01:06.2]} 13... Bxe3 {[%clk 0:02:28.5]} 14. fxe3 {[%clk 0:01:04.5]}
14... d5 {[%clk 0:02:28.7]} 15. exd5 {[%clk 0:01:00]} 15... cxd5 {[%clk
0:02:27.7]} 16. Ng3 {[%clk 0:00:54.4]} 16... Qc7 {[%clk 0:02:16.4]} 17. Ng5
{[%clk 0:00:45.2]} 17... Bd7 {[%clk 0:02:08.5]} 18. Bxd7 {[%clk 0:00:43.4]}
18... Qxd7 {[%clk 0:02:08.1]} 19. Nh5 {[%clk 0:00:43.3]} 19... Nxh5 {[%clk
0:01:57.5]} 20. Qxh5 {[%clk 0:00:42.7]} 20... h6 {[%clk 0:01:58.2]} 21. Nf3
{[%clk 0:00:41.2]} 21... Rac8 {[%clk 0:01:45]} 22. Nxe5 {[%clk 0:00:34.5]} 22...
Nxe5 {[%clk 0:01:40.8]} 23. Qxe5 {[%clk 0:00:35.4]} 23... Rfe8 {[%clk
0:01:39.7]} 24. Qd4 {[%clk 0:00:27.9]} 24... Qb5 {[%clk 0:01:39.5]} 25. Rf1
{[%clk 0:00:26.6]} 25... Qxb2 {[%clk 0:01:37]} 26. Qxd5 {[%clk 0:00:25.9]} 26...
Re7 {[%clk 0:01:33.6]} 27. Rab1 {[%clk 0:00:20.4]} 27... Qxc3 {[%clk 0:01:31.3]}
28. Rxb7 {[%clk 0:00:20.4]} 28... Rxb7 {[%clk 0:01:22.6]} 29. Qxb7 {[%clk
0:00:21.3]} 29... Rc7 {[%clk 0:01:20.6]} 30. Qb8+ {[%clk 0:00:21.5]} 30... Rc8
{[%clk 0:01:20.4]} 31. Qa7 {[%clk 0:00:21.6]} 31... Rc7 {[%clk 0:01:18.9]} 32.
Qa8+ {[%clk 0:00:21.2]} 32... Rc8 {[%clk 0:01:18.9]} 33. Qe4 {[%clk 0:00:21.4]}
33... Qb2 {[%clk 0:01:08.5]} 34. Qd5 {[%clk 0:00:21.4]} 34... Rc7 {[%clk
0:00:56.9]} 35. Qxa5 {[%clk 0:00:21.4]} 35... Rd7 {[%clk 0:00:51.9]} 36. Qa8+
{[%clk 0:00:20.8]} 36... Kh7 {[%clk 0:00:50.9]} 37. Qe4+ {[%clk 0:00:21]} 37...
g6 {[%clk 0:00:50.6]} 38. Qe8 {[%clk 0:00:19.7]} 38... Qb7 {[%clk 0:00:46.5]}
39. a4 {[%clk 0:00:19.4]} 39... Re7 {[%clk 0:00:46.4]} 40. Qf8 {[%clk
0:00:19.4]} 40... Qa7 {[%clk 0:00:40.4]} 41. d4 {[%clk 0:00:19.8]} 41... Qd7
{[%clk 0:00:36.5]} 42. a5 {[%clk 0:00:19.7]} 42... Qe6 {[%clk 0:00:36.8]} 43.
Kh1 {[%clk 0:00:19.7]} 43... h5 {[%clk 0:00:31.2]} 44. a6 {[%clk 0:00:19.5]}
44... Ra7 {[%clk 0:00:29.2]} 45. Rb1 {[%clk 0:00:13.6]} 45... Qxe3 {[%clk
0:00:27.5]} 46. Rb7 {[%clk 0:00:10.2]} 46... Rxb7 {[%clk 0:00:26.9]} 47. axb7
{[%clk 0:00:11.1]} 47... Qc1+ {[%clk 0:00:27.4]} 48. Kh2 {[%clk 0:00:11.4]}
48... Qf4+ {[%clk 0:00:28]} 49. Kg1 {[%clk 0:00:11.8]} 49... Qe3+ {[%clk
0:00:24.9]} 50. Kh1 {[%clk 0:00:11.5]} 50... Qc1+ {[%clk 0:00:24.7]} 51. Kh2
{[%clk 0:00:12]} 51... Qf4+ {[%clk 0:00:25.2]} 52. Kg1 {[%clk 0:00:12.5]} 52...
Qe3+ {[%clk 0:00:23.8]} 53. Kf1 {[%clk 0:00:13]} 53... Qd3+ {[%clk 0:00:19.5]}
54. Kf2 {[%clk 0:00:12.9]} 54... Qxd4+ {[%clk 0:00:19.9]} 55. Ke2 {[%clk
0:00:13.4]} 55... Qe4+ {[%clk 0:00:20]} 56. Kf2 {[%clk 0:00:14]} 56... Qxb7
{[%clk 0:00:20.1]} 57. Kg3 {[%clk 0:00:14.7]} 57... Qc7+ {[%clk 0:00:19.9]} 58.
Kh4 {[%clk 0:00:14.4]} 58... Qf4+ {[%clk 0:00:20.1]} 59. g4 {[%clk 0:00:14.8]}
59... Qf2+ {[%clk 0:00:19]} 60. Kg5 {[%clk 0:00:15.2]} 60... Qe3+ {[%clk
0:00:18.8]} 61. Kh4 {[%clk 0:00:15.4]} 61... Qf2+ {[%clk 0:00:18.6]} 62. Kg5
{[%clk 0:00:15.8]} 62... Qe3+ {[%clk 0:00:15.2]} 63. Kh4 {[%clk 0:00:16]} 63...
Qf2+ {[%clk 0:00:14.1]} 1/2-1/2

[Event "Early-Titled-Tuesday-Blitz-October-17-2023"]
[Site "Chess.com"]
[Date "2023.10.17"]
[Round "4"]
[White "Alphafischer2019"]
[Black "Anton_Demchenko"]
[Result "0-1"]
[WhiteElo "2594"]
[BlackElo "3017"]
[TimeControl "180+1"]
[EndTime "8:42:54 PDT"]
[Termination "Anton_Demchenko won on time"]

1. e4 {[%clk 0:03:00.9]} 1... e5 {[%clk 0:02:58.3]} 2. Nf3 {[%clk 0:03:00.3]}
2... Nc6 {[%clk 0:02:55.9]} 3. Nc3 {[%clk 0:03:00.7]} 3... Nf6 {[%clk
0:02:54.3]} 4. d4 {[%clk 0:03:00.8]} 4... exd4 {[%clk 0:02:55.2]} 5. Nxd4 {[%clk
0:03:01.5]} 5... Bb4 {[%clk 0:02:55.6]} 6. Nxc6 {[%clk 0:03:01.4]} 6... bxc6
{[%clk 0:02:56.5]} 7. Bd3 {[%clk 0:03:01.7]} 7... Qe7 {[%clk 0:02:57]} 8. O-O
{[%clk 0:02:49.6]} 8... d6 {[%clk 0:02:57.5]} 9. Bg5 {[%clk 0:02:42.5]} 9... h6
{[%clk 0:02:57.3]} 10. Bh4 {[%clk 0:02:42.7]} 10... g5 {[%clk 0:02:57.4]} 11.
Bg3 {[%clk 0:02:43.2]} 11... Bg4 {[%clk 0:02:57.8]} 12. f3 {[%clk 0:02:38.2]}
12... Be6 {[%clk 0:02:57.8]} 13. a3 {[%clk 0:02:25.4]} 13... Bc5+ {[%clk
0:02:41.2]} 14. Kh1 {[%clk 0:02:09]} 14... Nh5 {[%clk 0:02:31.1]} 15. Be1 {[%clk
0:02:08.4]} 15... Nf4 {[%clk 0:01:48.3]} 16. Ne2 {[%clk 0:02:04]} 16... Rg8
{[%clk 0:01:35]} 17. Bd2 {[%clk 0:01:50.8]} 17... Qf6 {[%clk 0:01:17]} 18. b4
{[%clk 0:01:33.8]} 18... Bb6 {[%clk 0:01:13.8]} 19. a4 {[%clk 0:01:16]} 19...
Nxe2 {[%clk 0:01:11.4]} 20. Qxe2 {[%clk 0:01:15]} 20... Bd4 {[%clk 0:01:12.1]}
21. Rae1 {[%clk 0:01:10.6]} 21... Be5 {[%clk 0:01:10.4]} 22. Ba6 {[%clk
0:01:08]} 22... Rb8 {[%clk 0:01:05.5]} 23. Bc4 {[%clk 0:01:00.7]} 23... h5
{[%clk 0:00:55.7]} 24. Bxe6 {[%clk 0:00:51.5]} 24... Qxe6 {[%clk 0:00:30.6]} 25.
b5 {[%clk 0:00:45]} 25... c5 {[%clk 0:00:27.8]} 26. f4 {[%clk 0:00:44.5]} 26...
gxf4 {[%clk 0:00:26.1]} 27. Bxf4 {[%clk 0:00:45.4]} 27... Bd4 {[%clk 0:00:12.2]}
28. Qxh5 {[%clk 0:00:37]} 28... Qg6 {[%clk 0:00:12.3]} 29. Qf3 {[%clk
0:00:33.3]} 29... f6 {[%clk 0:00:08.9]} 30. h3 {[%clk 0:00:30.3]} 30... Ke7
{[%clk 0:00:08.8]} 31. c3 {[%clk 0:00:27.4]} 31... Be5 {[%clk 0:00:08.7]} 32.
Bxe5 {[%clk 0:00:27.9]} 32... fxe5 {[%clk 0:00:09.6]} 33. Qe2 {[%clk 0:00:20.7]}
33... Rg7 {[%clk 0:00:09.5]} 34. Rf3 {[%clk 0:00:20.7]} 34... Rbg8 {[%clk
0:00:10.1]} 35. Ref1 {[%clk 0:00:11.3]} 35... Rh8 {[%clk 0:00:10.7]} 36. Qf2
{[%clk 0:00:08.5]} 36... Rhg8 {[%clk 0:00:07]} 37. Qe2 {[%clk 0:00:07.9]} 37...
Rh7 {[%clk 0:00:04]} 38. Qf2 {[%clk 0:00:07.5]} 38... Rhg7 {[%clk 0:00:03.5]}
39. Qh4+ {[%clk 0:00:07.1]} 39... Kd7 {[%clk 0:00:03.2]} 40. Qf2 {[%clk
0:00:07.1]} 40... Kc8 {[%clk 0:00:02.9]} 41. Rf8+ {[%clk 0:00:06.7]} 41... Rxf8
{[%clk 0:00:03.4]} 42. Qxf8+ {[%clk 0:00:07]} 42... Kb7 {[%clk 0:00:04.3]} 43.
Qf3 {[%clk 0:00:07.4]} 43... Qe6 {[%clk 0:00:01.7]} 44. a5 {[%clk 0:00:07.4]}
44... Qc4 {[%clk 0:00:01.9]} 45. Qf8 {[%clk 0:00:04.7]} 45... Qxb5 {[%clk
0:00:01.4]} 46. Rf7 {[%clk 0:00:03.2]} 46... Rxf7 {[%clk 0:00:01.6]} 47. Qxf7
{[%clk 0:00:04.1]} 47... Qxa5 {[%clk 0:00:01.6]} 48. h4 {[%clk 0:00:04.7]} 48...
Qa1+ {[%clk 0:00:01.4]} 49. Kh2 {[%clk 0:00:04.6]} 49... Qxc3 {[%clk 0:00:02.3]}
50. h5 {[%clk 0:00:05.1]} 50... Qd2 {[%clk 0:00:02.6]} 51. Qg6 {[%clk
0:00:05.3]} 51... Qf4+ {[%clk 0:00:02.6]} 52. g3 {[%clk 0:00:06]} 52... Qd2+
{[%clk 0:00:02.6]} 53. Kh3 {[%clk 0:00:06.7]} 53... c4 {[%clk 0:00:03.5]} 54. h6
{[%clk 0:00:07.4]} 54... c3 {[%clk 0:00:03.9]} 55. Qf7 {[%clk 0:00:04.5]} 55...
c2 {[%clk 0:00:04]} 56. Qb3+ {[%clk 0:00:05.1]} 56... Kc6 {[%clk 0:00:04.4]} 57.
Qc4+ {[%clk 0:00:05.5]} 57... Kb6 {[%clk 0:00:04.8]} 58. Qb3+ {[%clk 0:00:05.8]}
58... Kc5 {[%clk 0:00:05.5]} 59. Qa3+ {[%clk 0:00:06.1]} 59... Kd4 {[%clk
0:00:05.9]} 60. Qa4+ {[%clk 0:00:06.1]} 60... Kd3 {[%clk 0:00:06.2]} 61. Qb3+
{[%clk 0:00:06.5]} 61... Ke2 {[%clk 0:00:06.6]} 62. Qc4+ {[%clk 0:00:06.4]}
62... Ke1 {[%clk 0:00:07.1]} 63. h7 {[%clk 0:00:03.1]} 63... Qh6+ {[%clk
0:00:06.5]} 64. Kg2 {[%clk 0:00:03]} 64... Kd2 {[%clk 0:00:07.1]} 65. Qd5+
{[%clk 0:00:01.4]} 65... Kc1 {[%clk 0:00:06.2]} 66. Qg8 {[%clk 0:00:01.3]} 66...
Kb2 {[%clk 0:00:04.9]} 67. Qb8+ {[%clk 0:00:01.3]} 67... Kc1 {[%clk 0:00:03.4]}
0-1

[Event "Early-Titled-Tuesday-Blitz-October-17-2023"]
[Site "Chess.com"]
[Date "2023.10.17"]
[Round "4"]
[White "Juicy_Fork"]
[Black "alexrustemov"]
[Result "1/2-1/2"]
[WhiteElo "2426"]
[BlackElo "2800"]
[TimeControl "180+1"]
[EndTime "8:42:59 PDT"]
[Termination "Game drawn by repetition"]

1. e4 {[%clk 0:03:00.9]} 1... e6 {[%clk 0:02:59.6]} 2. d4 {[%clk 0:02:59]} 2...
d5 {[%clk 0:02:59.9]} 3. Nc3 {[%clk 0:02:58.4]} 3... dxe4 {[%clk 0:02:59.8]} 4.
Nxe4 {[%clk 0:02:56.4]} 4... Bd7 {[%clk 0:03:00.2]} 5. Nf3 {[%clk 0:02:55.2]}
5... Bc6 {[%clk 0:03:00.6]} 6. Bd3 {[%clk 0:02:55]} 6... Nd7 {[%clk 0:03:01]} 7.
O-O {[%clk 0:02:49.4]} 7... Ngf6 {[%clk 0:03:01.3]} 8. Nxf6+ {[%clk 0:02:41.8]}
8... Nxf6 {[%clk 0:03:00.6]} 9. c3 {[%clk 0:02:35.7]} 9... Bxf3 {[%clk
0:02:59.9]} 10. Qxf3 {[%clk 0:02:35.4]} 10... Qd5 {[%clk 0:03:00.6]} 11. Qxd5
{[%clk 0:02:32.6]} 11... Nxd5 {[%clk 0:03:01.5]} 12. Re1 {[%clk 0:02:31.2]}
12... Be7 {[%clk 0:02:59.7]} 13. a3 {[%clk 0:02:31.4]} 13... Rd8 {[%clk
0:02:58.7]} 14. h3 {[%clk 0:02:29]} 14... O-O {[%clk 0:02:57.8]} 15. Bc2 {[%clk
0:02:26.9]} 15... c6 {[%clk 0:02:55.9]} 16. Bd2 {[%clk 0:02:22.5]} 16... Rd7
{[%clk 0:02:53.8]} 17. Rad1 {[%clk 0:02:21.4]} 17... Rfd8 {[%clk 0:02:53.2]} 18.
a4 {[%clk 0:02:13.5]} 18... a5 {[%clk 0:02:52.2]} 19. g3 {[%clk 0:01:57.7]}
19... g6 {[%clk 0:02:50.9]} 20. Bh6 {[%clk 0:01:55.8]} 20... Bf8 {[%clk
0:02:43.3]} 21. Bc1 {[%clk 0:01:43.8]} 21... Kg7 {[%clk 0:02:41.3]} 22. f4
{[%clk 0:01:43.6]} 22... h5 {[%clk 0:02:38.5]} 23. Kf2 {[%clk 0:01:43.7]} 23...
Bd6 {[%clk 0:02:30.8]} 24. Kf3 {[%clk 0:01:43.3]} 24... b5 {[%clk 0:02:30.7]}
25. axb5 {[%clk 0:01:11.2]} 25... cxb5 {[%clk 0:02:30.5]} 26. g4 {[%clk
0:01:07.5]} 26... hxg4+ {[%clk 0:02:25.5]} 27. hxg4 {[%clk 0:01:08.4]} 27... a4
{[%clk 0:02:18.1]} 28. f5 {[%clk 0:01:07.9]} 28... exf5 {[%clk 0:02:16.4]} 29.
gxf5 {[%clk 0:01:08.2]} 29... a3 {[%clk 0:02:16.1]} 30. Rg1 {[%clk 0:00:50.3]}
30... axb2 {[%clk 0:02:13.5]} 31. Bxb2 {[%clk 0:00:47.5]} 31... Ne7 {[%clk
0:02:05.9]} 32. Rde1 {[%clk 0:00:39.3]} 32... Rh8 {[%clk 0:02:04.6]} 33. c4
{[%clk 0:00:34.6]} 33... bxc4 {[%clk 0:01:55.2]} 34. f6+ {[%clk 0:00:30.3]}
34... Kf8 {[%clk 0:01:41.5]} 35. fxe7+ {[%clk 0:00:29.3]} 35... Bxe7 {[%clk
0:01:41.7]} 36. Rh1 {[%clk 0:00:21.6]} 36... Rxh1 {[%clk 0:01:36.9]} 37. Rxh1
{[%clk 0:00:22.5]} 37... Bf6 {[%clk 0:01:37.1]} 38. Ke3 {[%clk 0:00:17.9]} 38...
Re7+ {[%clk 0:01:37.4]} 39. Be4 {[%clk 0:00:14.3]} 39... Bg5+ {[%clk 0:01:22.3]}
40. Kf3 {[%clk 0:00:14.5]} 40... f5 {[%clk 0:01:22.4]} 41. Bd5 {[%clk 0:00:08]}
41... Re3+ {[%clk 0:01:22.6]} 42. Kf2 {[%clk 0:00:08.2]} 42... Rd3 {[%clk
0:01:20.7]} 43. Rh8+ {[%clk 0:00:04.6]} 43... Kg7 {[%clk 0:01:20.8]} 44. Rg8+
{[%clk 0:00:05.1]} 44... Kh7 {[%clk 0:01:21.2]} 45. Ke1 {[%clk 0:00:03.7]} 45...
c3 {[%clk 0:01:18.9]} 46. Ba3 {[%clk 0:00:03.1]} 46... Rxd4 {[%clk 0:01:15.2]}
47. Bb3 {[%clk 0:00:02.2]} 47... c2 {[%clk 0:01:15.7]} 48. Rf8 {[%clk
0:00:01.5]} 48... Rd1+ {[%clk 0:00:58.1]} 49. Ke2 {[%clk 0:00:01.6]} 49... c1=Q
{[%clk 0:00:57]} 50. Bxc1 {[%clk 0:00:01.2]} 50... Rxc1 {[%clk 0:00:57.4]} 51.
Rf7+ {[%clk 0:00:02.1]} 51... Kh6 {[%clk 0:00:57.3]} 52. Rb7 {[%clk 0:00:03]}
52... Rb1 {[%clk 0:00:55.6]} 53. Bd5 {[%clk 0:00:03.2]} 53... Rxb7 {[%clk
0:00:54.5]} 54. Bxb7 {[%clk 0:00:04.1]} 54... Bd8 {[%clk 0:00:54]} 55. Kf3
{[%clk 0:00:05]} 55... Bc7 {[%clk 0:00:51.3]} 56. Kg2 {[%clk 0:00:05.9]} 56...
g5 {[%clk 0:00:50.8]} 57. Bf3 {[%clk 0:00:06.8]} 57... g4 {[%clk 0:00:50.5]} 58.
Bb7 {[%clk 0:00:07.7]} 58... Kg5 {[%clk 0:00:50.8]} 59. Ba8 {[%clk 0:00:08]}
59... f4 {[%clk 0:00:48]} 60. Bd5 {[%clk 0:00:06.6]} 60... Bb6 {[%clk
0:00:47.9]} 61. Bc6 {[%clk 0:00:06.3]} 61... Kf6 {[%clk 0:00:47.8]} 62. Bb7
{[%clk 0:00:04.8]} 62... Ke5 {[%clk 0:00:47.4]} 63. Bc8 {[%clk 0:00:04.9]} 63...
f3+ {[%clk 0:00:38.8]} 64. Kg3 {[%clk 0:00:04.5]} 64... f2 {[%clk 0:00:30.4]}
65. Ba6 {[%clk 0:00:04]} 65... Kf5 {[%clk 0:00:28.8]} 66. Bd3+ {[%clk
0:00:03.4]} 66... Kg5 {[%clk 0:00:29.1]} 67. Be2 {[%clk 0:00:03.7]} 67... Bc5
{[%clk 0:00:26]} 68. Bd3 {[%clk 0:00:04]} 68... Bd4 {[%clk 0:00:26]} 69. Be2
{[%clk 0:00:04.4]} 69... Kf5 {[%clk 0:00:26.5]} 70. Bxg4+ {[%clk 0:00:04.1]}
70... Ke4 {[%clk 0:00:27.2]} 71. Be2 {[%clk 0:00:03.2]} 71... Ke3 {[%clk
0:00:27.9]} 72. Ba6 {[%clk 0:00:03.6]} 72... Kd2 {[%clk 0:00:28.5]} 73. Bb5
{[%clk 0:00:04]} 73... Ke1 {[%clk 0:00:29.1]} 74. Ba6 {[%clk 0:00:04.2]} 74...
Bc5 {[%clk 0:00:29.5]} 75. Bb5 {[%clk 0:00:04.3]} 75... Bb6 {[%clk 0:00:30.4]}
76. Kg2 {[%clk 0:00:04.9]} 76... Ba7 {[%clk 0:00:31.3]} 77. Bf1 {[%clk
0:00:05.5]} 77... Bb6 {[%clk 0:00:31.6]} 78. Bd3 {[%clk 0:00:06.4]} 78... Bc5
{[%clk 0:00:32.1]} 79. Bf1 {[%clk 0:00:07.3]} 79... Bd4 {[%clk 0:00:32.5]} 80.
Ba6 {[%clk 0:00:08.2]} 80... Bc5 {[%clk 0:00:32.9]} 81. Bf1 {[%clk 0:00:09.1]}
81... Bb6 {[%clk 0:00:33.5]} 82. Ba6 {[%clk 0:00:09.3]} 82... Bc5 {[%clk
0:00:30.2]} 83. Bf1 {[%clk 0:00:10.2]} 1/2-1/2